bitfinex-derivatives/quotes_BNBF0:USTF0_20251027
["timestamp","ask_amount","ask_price","bid_price","bid_amount"]
[1761571708889,2.124773,1174.6,1172.5,0.55022646]
[1761571709091,2.124773,1174.6,1172.3,1.211]
[1761571709289,2.124773,1174.6,1172.4,0.5502094]
[1761571709493,2.124773,1174.6,1172.5,0.5502094]
[1761571709694,2.124773,1174.6,1172.3,1.211]
[1761571709895,2.124773,1174.8,1172.4,0.55032732]
[1761571710093,2.124773,1174.8,1172.5,0.55032732]
[1761571710292,2.9746823,1175.1,1172.6,0.55020158]
[1761571710493,2.124773,1175.4,1172.7,0.55020158]
[1761571710697,2.124773,1175.4,1172.3,1.211]
[1761571710891,2.124773,1174.5,1172.3,1.211]
[1761571711896,2.124773,1174.6,1172.3,1.211]
[1761571712197,2.124773,1174.6,1172.4,0.55042421]
[1761571712396,2.124773,1174.6,1172.3,1.211]
[1761571712597,2.124773,1174.6,1172.4,0.55044855]
[1761571712794,2.124773,1174.6,1172.3,1.211]
[1761571712998,2.124773,1174.6,1172.4,0.55044855]
[1761571713293,2.124773,1174.6,1172.3,1.211]
[1761571713494,2.124773,1174.4,1172.4,0.55044157]
[1761571713695,2.124773,1174.4,1172.3,1.211]
[1761571713995,2.124773,1174.4,1172.4,0.55045349]
[1761571714196,2.124773,1174.4,1172.3,1.211]
[1761571714397,2.9746823,1174.8,1172.4,0.55041408]
[1761571714398,2.124773,1174.7,1172.4,0.55041408]
[1761571714598,2.124773,1174.7,1172.3,1.211]
[1761571714796,2.124773,1174.7,1172.4,0.5504225]
[1761571715100,2.124773,1174.8,1172.3,1.211]
[1761571715300,2.124773,1174.8,1172.4,0.55040715]
[1761571715498,2.124773,1174.8,1172.3,1.211]
[1761571715701,2.124773,1174.8,1172.4,0.55040484]
[1761571715897,2.124773,1174.8,1172.3,1.211]
[1761571716201,2.124773,1174.8,1172.4,0.5503594]
[1761571716402,2.124773,1174.8,1172.3,1.211]
[1761571716602,2.124773,1174.8,1172.4,0.55036384]
[1761571716898,2.124773,1174.8,1172.5,0.55036384]
[1761571717102,2.124773,1175.2,1172.3,1.211]
[1761571717300,2.124773,1175.2,1172.4,0.55022131]
[1761571717502,2.124773,1175.2,1172.3,1.211]
[1761571717503,2.124773,1175.2,1172.5,0.55022131]
[1761571717803,2.124773,1175.2,1172.3,1.211]
[1761571717999,2.124773,1175.2,1172.4,0.55024712]
[1761571718303,2.124773,1175.2,1172.5,0.55024712]
[1761571718504,2.124773,1175.2,1172.3,1.211]
[1761571718701,2.124773,1175.2,1172.4,0.55023064]
[1761571719006,2.124773,1175.2,1172.5,0.55023064]
[1761571719202,2.124773,1175.2,1172.3,1.211]
[1761571719404,2.124773,1175.2,1172.4,0.55020505]
[1761571719601,2.124773,1175.2,1172.5,0.55020505]
[1761571719802,2.124773,1175.2,1172.3,1.211]
[1761571720006,2.124773,1175.2,1172.4,0.55021206]
[1761571720203,2.124773,1175.2,1172.3,1.211]
[1761571720402,2.124773,1175.2,1172.4,0.55019835]
[1761571720703,2.124773,1175.3,1172.5,0.55019835]
[1761571720903,2.124773,1175.3,1172.3,1.211]
[1761571721103,2.124773,1175.3,1172.4,0.55009942]
[1761571721305,2.124773,1175.3,1172.3,1.211]
[1761571721502,2.124773,1175.3,1172.4,0.54997176]
[1761571721703,2.124773,1175.2,1172.3,1.211]
[1761571721903,2.124773,1175.2,1172.4,0.54997176]
[1761571722208,2.124773,1175.1,1172.3,1.211]
[1761571722408,2.124773,1175.1,1172.4,0.54993546]
[1761571722707,2.124773,1175.1,1172.3,1.211]
[1761571724012,2.124773,1175.1,1172.4,0.54998621]
[1761571724213,2.124773,1175.4,1172.3,1.211]
[1761571724409,2.124773,1175.4,1172.4,0.54996266]
[1761571724612,2.124773,1175.4,1172.3,1.211]
[1761571724809,2.124773,1175.4,1172.4,0.54997611]
[1761571725009,2.124773,1175.4,1172.3,1.211]
[1761571725308,2.124773,1175.1,1172.3,1.211]
[1761571727915,2.124773,1175.0,1172.4,0.54973238]
[1761571728114,2.124773,1175.0,1172.3,1.211]
[1761571728412,2.124773,1174.8,1172.3,1.211]
[1761571729917,2.124773,1174.7,1172.3,1.211]
[1761571731117,2.124773,1174.6,1172.3,1.211]
[1761571731612,2.124773,1175.0,1172.3,1.211]
[1761571732613,2.124773,1174.9,1172.3,1.211]
[1761571734216,2.124773,1175.6,1172.3,1.211]
[1761571734718,2.124773,1175.5,1172.3,1.211]
[1761571735219,2.124773,1175.6,1172.3,1.211]
[1761571737814,2.27306224,1175.7,1172.3,1.211]
[1761571739820,2.124773,1175.2,1172.3,1.211]
[1761571741415,2.124773,1174.4,1172.3,1.211]
[1761571741919,2.124773,1174.2,1172.3,1.211]
[1761571742416,2.9746823,1174.9,1172.3,1.211]
[1761571742417,2.124773,1174.0,1172.3,1.211]
[1761571743520,2.124773,1174.1,1172.3,1.211]
[1761571744520,2.124773,1174.2,1172.3,1.211]
[1761571744918,2.124773,1174.2,1170.8,0.14845878]
[1761571745221,2.124773,1174.2,1170.9,0.54933589]
[1761571745422,2.124773,1174.2,1171.0,0.54933589]
[1761571745623,2.124773,1174.2,1171.1,0.54933589]
[1761571745821,2.124773,1174.2,1170.8,0.14845878]
[1761571746025,2.124773,1174.2,1170.9,0.54917944]
[1761571746225,2.124773,1174.1,1171.0,0.54917944]
[1761571746425,2.124773,1174.1,1170.8,0.14845878]
[1761571746625,2.124773,1173.7,1170.9,0.54872618]
[1761571746923,2.124773,1173.8,1171.0,0.54872618]
[1761571747121,2.124773,1173.8,1171.1,0.54872618]
[1761571747322,2.124773,1173.7,1170.8,0.14845878]
[1761571747522,2.124773,1173.7,1170.9,0.54832529]
[1761571747722,2.124773,1173.8,1171.0,0.54832529]
[1761571748020,2.124773,1173.8,1171.1,0.54832529]
[1761571748224,2.124773,1173.8,1170.8,0.14845878]
[1761571748524,2.124773,1173.6,1170.9,0.54813718]
[1761571748725,2.124773,1173.6,1171.0,1.78413718]
[1761571748924,2.124773,1173.6,1171.0,1.236]
[1761571749328,2.124773,1173.7,1171.0,1.236]
[1761571750429,2.124773,1173.7,1171.1,0.54767228]
[1761571750726,2.124773,1173.7,1171.0,1.236]
[1761571750929,2.124773,1174.1,1171.1,0.54768038]
[1761571751130,2.124773,1174.1,1171.0,1.236]
[1761571752228,2.124773,1174.1,1171.1,0.54744769]
[1761571752439,2.124773,1174.2,1171.0,1.236]
[1761571752633,2.124773,1174.2,1171.1,0.5471702]
[1761571752930,2.124773,1173.9,1171.2,0.5471702]
[1761571753133,2.124773,1173.9,1171.0,1.236]
[1761571753433,2.124773,1174.1,1171.1,0.54710366]
[1761571753632,2.124773,1174.1,1171.0,1.236]
[1761571753633,2.124773,1174.1,1171.2,0.54710366]
[1761571753829,2.124773,1174.1,1171.3,0.54710366]
[1761571754030,2.124773,1174.1,1171.0,1.86742997]
[1761571754332,2.124773,1174.1,1171.1,0.54667695]
[1761571754529,2.124773,1174.1,1171.2,0.54667695]
[1761571754829,2.124773,1174.1,1171.3,0.54667695]
[1761571755034,2.124773,1174.1,1171.0,1.86742997]
[1761571755330,5.0994553,1174.5,1171.1,1.17794269]
[1761571755532,5.0994553,1174.5,1171.2,0.54651272]
[1761571755732,5.0994553,1174.5,1171.3,0.54651272]
[1761571755932,2.124773,1174.5,1171.4,0.54651272]
[1761571756134,2.124773,1174.5,1171.5,0.54651272]
[1761571756333,2.124773,1175.5,1171.0,1.236]
[1761571756539,2.124773,1175.5,1171.1,0.5463308]
[1761571756737,2.124773,1175.5,1171.2,0.5463308]
[1761571756935,2.124773,1175.5,1171.3,0.5463308]
[1761571757235,2.124773,1175.5,1171.4,0.5463308]
[1761571757436,2.124773,1175.5,1171.5,0.5463308]
[1761571757634,2.124773,1175.5,1171.0,1.236]
[1761571757834,2.124773,1175.5,1171.1,0.54644712]
[1761571758034,2.124773,1175.5,1171.2,0.54644712]
[1761571758233,2.124773,1175.5,1171.3,0.54644712]
[1761571758538,0.14828924,1175.7,1171.0,1.236]
[1761571758734,0.14828924,1175.7,1171.1,0.54692021]
[1761571758937,0.14828924,1175.7,1171.0,1.236]
[1761571758938,0.14828924,1175.7,1171.2,0.54692021]
[1761571759134,0.14828924,1175.7,1171.3,0.54692021]
[1761571759339,0.14828924,1175.7,1171.0,1.236]
[1761571759536,0.14828924,1175.7,1171.1,0.54706793]
[1761571759740,0.14828924,1175.7,1171.2,0.54706793]
[1761571760035,0.14828924,1175.7,1171.3,0.54706793]
[1761571760239,0.14828924,1175.7,1170.8,0.14845878]
[1761571760437,0.14828924,1175.7,1170.9,0.54709899]
[1761571760637,0.14828924,1175.7,1170.8,0.14845878]
[1761571760638,2.124773,1175.2,1171.0,0.54709899]
[1761571760836,2.124773,1175.2,1171.1,0.54709899]
[1761571761039,2.124773,1175.2,1171.2,0.54709899]
[1761571761240,2.124773,1175.2,1171.3,0.54709899]
[1761571761440,2.124773,1175.2,1170.8,0.14845878]
[1761571761640,2.124773,1175.2,1170.9,0.54694154]
[1761571761838,2.124773,1175.2,1171.0,0.54694154]
[1761571762042,2.124773,1175.2,1171.1,1.63194154]
[1761571762239,2.124773,1175.2,1171.1,1.085]
[1761571762742,2.124773,1175.1,1171.1,1.085]
[1761571763542,2.124773,1174.9,1171.1,1.085]
[1761571765146,2.124773,1174.7,1171.1,1.085]
[1761571765848,2.124773,1174.6,1171.1,1.085]
[1761571766248,2.124773,1174.4,1171.1,1.085]
[1761571768950,2.124773,1174.3,1171.1,1.085]
[1761571769448,2.124773,1173.8,1171.1,1.085]
[1761571769843,2.124773,1173.9,1171.1,1.085]
[1761571771449,2.124773,1173.7,1171.1,1.085]
[1761571771747,2.124773,1173.8,1171.1,1.085]
[1761571772251,2.124773,1173.9,1171.1,1.085]
[1761571773247,2.124773,1174.0,1171.1,1.085]
[1761571773953,2.124773,1174.1,1171.2,0.54726101]
[1761571774151,2.124773,1174.2,1171.3,0.54709414]
[1761571774351,2.124773,1174.2,1171.4,0.54703535]
[1761571774646,2.124773,1174.3,1171.1,1.085]
[1761571774847,2.124773,1174.3,1171.2,0.54730423]
[1761571775052,2.124773,1174.3,1171.3,0.54730423]
[1761571775246,2.124773,1174.3,1171.4,0.54738079]
[1761571775452,2.9746823,1174.7,1171.5,0.54738079]
[1761571775646,2.9746823,1174.7,1171.1,1.085]
[1761571775847,4.2495461,1175.2,1171.2,0.54730842]
[1761571776150,0.14828924,1175.7,1171.3,0.54730842]
[1761571776347,2.124773,1174.7,1171.4,0.54730842]
[1761571776551,2.124773,1174.7,1171.5,0.54730842]
[1761571776753,2.124773,1174.5,1171.6,0.54703644]
[1761571777053,2.124773,1174.5,1171.2,0.62839415]
[1761571777350,2.124773,1174.6,1171.3,0.54710131]
[1761571777551,2.124773,1174.6,1171.4,0.54710131]
[1761571777746,2.124773,1174.6,1171.5,0.54710131]
[1761571777948,2.124773,1174.6,1171.6,0.54710131]
[1761571778248,2.9746823,1175.0,1171.7,0.54710131]
[1761571778451,2.9746823,1175.0,1171.1,1.71339415]
[1761571778646,2.9746823,1175.0,1171.2,0.54738163]
[1761571778852,2.124773,1175.5,1171.3,0.54738163]
[1761571779048,2.124773,1175.5,1171.4,0.54738163]
[1761571779251,2.124773,1175.5,1171.5,0.54738163]
[1761571779448,2.124773,1175.4,1171.6,0.54738163]
[1761571779652,2.124773,1175.4,1171.7,0.54738163]
[1761571779847,2.124773,1175.4,1171.1,1.71339415]
[1761571780053,2.124773,1175.4,1171.2,0.54750443]
[1761571780353,0.14828924,1175.7,1171.3,0.54750443]
[1761571780653,0.14828924,1175.7,1171.4,0.54750443]
[1761571780953,0.14828924,1175.7,1171.1,1.71339415]
[1761571780954,0.14828924,1175.7,1171.5,0.54750443]
[1761571781151,0.14828924,1175.7,1171.6,0.54750443]
[1761571781354,0.14828924,1175.7,1171.7,0.54750443]
[1761571781651,0.14828924,1175.7,1171.1,1.71339415]
[1761571781851,0.14828924,1175.7,1171.2,0.54778127]
[1761571782054,0.14828924,1175.7,1171.3,0.54778127]
[1761571782354,0.14828924,1175.7,1171.4,0.54778127]
[1761571782553,0.14828924,1175.7,1171.5,0.54778127]
[1761571782751,0.14828924,1175.7,1171.6,0.54778127]
[1761571782953,0.14828924,1175.7,1171.7,0.54778127]
[1761571783153,0.14828924,1175.7,1171.8,0.54778127]
[1761571783352,0.14828924,1175.7,1171.1,1.71339415]
[1761571783551,2.124773,1175.4,1171.2,1.17628103]
[1761571783756,2.124773,1175.4,1171.3,0.54788688]
[1761571783951,2.124773,1175.4,1171.4,0.54788688]
[1761571784151,2.124773,1175.4,1171.5,0.54788688]
[1761571784352,2.124773,1175.4,1171.2,0.62839415]
[1761571784353,2.124773,1175.4,1171.6,0.54788688]
[1761571784552,2.124773,1175.4,1171.7,0.54788688]
[1761571784756,2.124773,1175.4,1171.8,0.54788688]
[1761571784955,2.124773,1175.4,1171.2,0.62839415]
[1761571785155,2.124773,1174.8,1171.3,0.54802747]
[1761571785353,2.124773,1174.8,1171.4,0.54802747]
[1761571785656,2.124773,1174.8,1171.5,0.54802747]
[1761571785855,2.124773,1174.8,1171.6,0.54802747]
[1761571786057,2.124773,1174.8,1171.7,0.54802747]
[1761571786254,2.124773,1174.8,1171.3,0.62839415]
[1761571786453,2.124773,1174.8,1171.4,0.54818115]
[1761571786656,2.124773,1174.8,1171.5,0.54818115]
[1761571786952,2.124773,1174.8,1171.6,0.54818115]
[1761571787154,2.124773,1174.8,1171.3,0.62839415]
[1761571787155,2.124773,1174.7,1171.7,0.54818115]
[1761571787354,2.124773,1174.7,1171.3,0.62839415]
[1761571787555,2.124773,1174.7,1171.4,0.54835466]
[1761571787757,2.124773,1174.7,1171.5,0.54835466]
[1761571787956,2.124773,1174.7,1171.6,0.54835466]
[1761571788258,2.124773,1174.7,1171.7,0.54835466]
[1761571788557,2.124773,1174.7,1171.8,0.54835466]
[1761571788756,2.124773,1174.8,1171.3,0.62839415]
[1761571788957,2.124773,1174.8,1171.4,0.54839301]
[1761571789158,2.124773,1174.8,1171.5,0.54839301]
[1761571789457,2.124773,1174.8,1171.6,0.54839301]
[1761571789758,2.124773,1174.8,1171.7,0.54839301]
[1761571789956,2.124773,1174.8,1171.8,0.54839301]
[1761571790160,2.124773,1174.8,1171.3,0.62839415]
[1761571790357,2.124773,1174.8,1171.4,0.54845869]
[1761571790661,2.124773,1174.8,1171.5,0.54845869]
[1761571790859,2.124773,1174.8,1171.6,0.54845869]
[1761571791158,2.124773,1174.8,1171.7,0.54845869]
[1761571791359,2.124773,1174.8,1171.8,0.54845869]
[1761571791558,2.124773,1174.8,1171.3,0.62839415]
[1761571791757,2.124773,1174.8,1171.4,0.54856457]
[1761571792061,2.124773,1174.8,1171.5,0.54856457]
[1761571792259,2.124773,1174.8,1171.6,0.54856457]
[1761571792458,2.124773,1174.8,1171.7,0.54856457]
[1761571792660,2.124773,1174.8,1171.8,0.54856457]
[1761571792860,2.124773,1174.6,1171.4,0.62839415]
[1761571793063,2.124773,1174.6,1171.5,0.5485764]
[1761571793263,2.124773,1174.6,1171.6,0.5485764]
[1761571793563,2.124773,1174.6,1171.7,0.5485764]
[1761571793761,2.124773,1174.6,1171.8,0.5485764]
[1761571793966,2.124773,1174.7,1171.4,0.62839415]
[1761571794166,2.124773,1174.7,1171.5,0.5486666]
[1761571794366,2.124773,1174.7,1171.6,0.5486666]
[1761571794563,2.124773,1174.7,1171.7,0.5486666]
[1761571794865,2.124773,1174.7,1171.8,0.5486666]
[1761571795066,2.124773,1174.7,1171.3,0.62839415]
[1761571795266,2.124773,1174.7,1171.4,0.54921455]
[1761571795463,2.124773,1174.7,1171.5,0.54921455]
[1761571795763,2.124773,1174.7,1171.6,0.54921455]
[1761571795961,2.124773,1174.7,1171.7,0.54921455]
[1761571796163,2.124773,1174.7,1171.3,0.62839415]
[1761571796463,2.124773,1174.6,1171.4,1.78440793]
[1761571796667,2.124773,1174.6,1171.5,0.54940793]
[1761571796963,2.124773,1174.6,1171.6,0.54940793]
[1761571797265,2.124773,1174.6,1171.7,0.54940793]
[1761571797463,2.124773,1174.0,1171.4,1.235]
[1761571797666,2.124773,1174.0,1171.5,0.54998022]
[1761571797965,2.124773,1174.0,1171.6,0.54998022]
[1761571798165,2.124773,1174.0,1171.4,1.235]
[1761571798363,2.124773,1174.0,1171.5,0.54997682]
[1761571798562,2.124773,1174.0,1171.6,0.54997682]
[1761571798762,2.124773,1174.0,1171.4,1.235]
[1761571798964,2.124773,1174.0,1171.5,0.5502337]
[1761571799163,2.124773,1174.0,1171.6,0.5502337]
[1761571799362,2.124773,1174.0,1171.4,1.235]
[1761571799662,2.124773,1173.9,1171.5,0.55037869]
[1761571799966,2.124773,1173.9,1171.6,0.55037869]
[1761571800167,2.9746823,1174.3,1171.7,0.55037869]
[1761571800466,2.9746823,1174.3,1171.4,1.235]
[1761571800762,4.2495461,1174.9,1171.5,0.55038289]
[1761571800966,2.124773,1175.1,1171.6,0.55038289]
[1761571801165,2.124773,1175.1,1171.7,0.55014006]
[1761571801362,2.124773,1174.1,1171.4,1.235]
[1761571801666,2.124773,1174.1,1171.5,0.55014926]
[1761571801863,2.124773,1174.1,1171.6,0.55014926]
[1761571802063,2.124773,1174.1,1171.7,0.55014926]
[1761571802267,2.124773,1174.2,1171.4,1.86650815]
[1761571802465,2.124773,1174.2,1171.5,0.55023888]
[1761571802669,2.124773,1174.2,1171.6,0.55023888]
[1761571802869,2.124773,1174.2,1171.7,0.55023888]
[1761571803168,2.124773,1174.2,1171.4,1.86650815]
[1761571803368,2.124773,1174.1,1171.5,0.55028707]
[1761571803566,2.124773,1174.1,1171.6,0.55028707]
[1761571803864,2.124773,1174.2,1171.7,0.55028707]
[1761571804067,2.124773,1174.2,1171.8,0.55028707]
[1761571804269,2.124773,1174.2,1171.5,0.63150815]
[1761571804569,2.124773,1174.2,1171.6,0.55000068]
[1761571804765,2.9746823,1174.6,1171.5,0.63150815]
[1761571804766,2.124773,1174.3,1171.7,0.55000068]
[1761571804970,2.124773,1174.3,1171.8,0.55000068]
[1761571805269,5.0994553,1174.8,1171.9,0.55000068]
[1761571805468,5.0994553,1174.8,1172.0,0.54969456]
[1761571805670,5.0994553,1174.8,1171.5,0.63150815]
[1761571805873,2.9746823,1174.8,1171.6,0.54971192]
[1761571806169,2.124773,1174.9,1171.7,0.54971192]
[1761571806372,2.124773,1174.8,1171.8,0.54971192]
[1761571806667,2.124773,1174.8,1171.9,0.54971192]
[1761571806872,2.124773,1175.1,1172.0,0.54971192]
[1761571807167,2.124773,1175.1,1172.1,0.54971192]
[1761571807371,2.124773,1175.3,1172.2,0.54971192]
[1761571807670,2.124773,1175.3,1171.7,0.63150815]
[1761571807867,2.124773,1175.4,1171.8,0.54945817]
[1761571808067,2.124773,1175.4,1171.9,0.54945817]
[1761571808271,2.124773,1175.4,1172.0,0.54945817]
[1761571808469,2.124773,1175.4,1172.1,0.54945817]
[1761571808668,2.124773,1175.4,1172.2,0.54945817]
[1761571808871,2.124773,1175.4,1171.6,0.63150815]
[1761571809070,2.124773,1175.4,1171.7,0.5495089]
[1761571809273,2.124773,1175.4,1171.8,0.5495089]
[1761571809471,2.124773,1175.4,1171.9,0.5495089]
[1761571809668,2.124773,1175.4,1171.4,1.235]
[1761571809669,2.124773,1175.5,1172.0,0.5495089]
[1761571809873,2.124773,1175.5,1172.1,0.5495089]
[1761571810069,2.124773,1175.5,1172.2,0.5495089]
[1761571810369,2.124773,1175.5,1172.3,0.5495089]
[1761571810669,2.124773,1175.5,1171.7,0.63150815]
[1761571810875,2.124773,1175.5,1171.8,0.54920068]
[1761571811174,2.124773,1175.5,1171.9,0.54920068]
[1761571811470,2.124773,1175.5,1172.0,0.54920068]
[1761571811774,2.124773,1174.7,1172.1,0.54920068]
[1761571811974,2.124773,1174.7,1172.2,0.54920068]
[1761571812171,2.124773,1174.7,1171.7,0.63150815]
[1761571812375,2.124773,1174.7,1171.8,0.5490508]
[1761571812575,2.124773,1174.7,1171.9,0.5490508]
[1761571812776,2.124773,1174.7,1172.0,0.5490508]
[1761571812976,2.124773,1174.7,1171.7,0.63150815]
[1761571813277,2.124773,1174.4,1171.8,0.54936021]
[1761571813574,2.124773,1174.4,1171.9,0.54936021]
[1761571813773,2.124773,1174.6,1171.4,1.86650815]
[1761571813971,2.124773,1174.6,1171.5,0.54961652]
[1761571814173,2.124773,1174.6,1171.6,0.54961652]
[1761571814374,2.124773,1174.5,1171.4,1.235]
[1761571814569,2.124773,1174.5,1171.5,0.54976993]
[1761571814871,2.124773,1174.6,1171.6,0.54976993]
[1761571815071,2.124773,1174.6,1171.7,0.54976993]
[1761571815273,2.124773,1174.6,1171.4,1.235]
[1761571815476,2.124773,1174.5,1171.5,0.54970306]
[1761571815675,2.124773,1174.5,1171.6,0.54970306]
[1761571815969,2.124773,1174.5,1171.7,0.54970306]
[1761571816175,2.124773,1174.5,1171.8,0.54970306]
[1761571816375,2.124773,1174.5,1171.4,1.86650815]
[1761571816575,2.124773,1174.5,1171.5,0.54949597]
[1761571816775,2.124773,1174.5,1171.6,0.54949597]
[1761571816975,2.9746823,1175.0,1171.7,0.54949597]
[1761571817171,2.9746823,1175.0,1171.8,0.54949597]
[1761571817372,2.124773,1175.2,1171.4,1.235]
[1761571817576,2.124773,1175.1,1171.5,0.54972115]
[1761571817776,2.124773,1175.1,1171.6,0.54972115]
[1761571817976,2.124773,1175.1,1171.7,0.54972115]
[1761571818173,2.124773,1175.1,1171.8,0.54972115]
[1761571818375,2.124773,1175.1,1171.9,0.54972115]
[1761571818678,2.124773,1175.1,1171.4,1.235]
[1761571818679,0.14828924,1175.7,1171.4,1.235]
[1761571818974,0.14828924,1175.7,1171.5,0.54987341]
[1761571819178,0.14828924,1175.7,1171.6,0.54987341]
[1761571819377,0.14828924,1175.7,1171.7,0.54987341]
[1761571819378,2.9746823,1175.4,1171.7,0.54987341]
[1761571819575,2.9746823,1175.4,1171.8,0.54987341]
[1761571819576,2.124773,1174.3,1171.8,0.54987341]
[1761571819778,2.124773,1174.3,1171.9,0.54987341]
[1761571819975,2.124773,1174.3,1171.6,0.63150815]
[1761571820279,2.124773,1174.3,1171.7,0.54982786]
[1761571820478,2.124773,1174.3,1171.8,0.54982786]
[1761571820676,2.124773,1174.3,1171.9,0.54982786]
[1761571820977,2.124773,1174.3,1171.6,0.63150815]
[1761571821176,2.124773,1174.3,1171.7,0.54969983]
[1761571821476,2.124773,1174.3,1171.8,0.54969983]
[1761571821675,2.124773,1174.3,1171.9,0.54969983]
[1761571821878,2.124773,1174.3,1171.6,0.63150815]
[1761571822077,2.124773,1174.3,1171.7,0.54973103]
[1761571822279,2.124773,1174.4,1171.8,0.54973103]
[1761571822477,2.9746823,1174.7,1171.9,0.54973103]
[1761571822478,2.124773,1174.7,1171.9,0.54973103]
[1761571822678,2.124773,1174.7,1172.0,0.54973103]
[1761571822878,2.124773,1174.7,1172.1,0.54973103]
[1761571823082,2.124773,1174.7,1172.2,0.54973103]
[1761571823282,2.124773,1174.7,1171.8,0.63150815]
[1761571823478,2.124773,1174.9,1171.9,0.54949036]
[1761571823682,2.124773,1174.9,1172.0,0.54949036]
[1761571823882,5.0994553,1175.3,1172.1,0.54949036]
[1761571824084,5.0994553,1175.3,1171.6,0.63150815]
[1761571824383,2.124773,1175.2,1171.7,0.5495422]
[1761571824583,2.124773,1175.2,1171.8,0.5495422]
[1761571824781,2.124773,1175.2,1171.9,0.5495422]
[1761571824984,2.124773,1175.2,1172.0,0.5495422]
[1761571825180,2.124773,1175.2,1172.1,0.5495422]
[1761571825479,2.124773,1175.2,1171.7,0.63150815]
[1761571825480,2.124773,1174.4,1171.7,0.63150815]
[1761571825781,2.124773,1174.4,1171.8,0.54972021]
[1761571825981,2.124773,1174.4,1171.9,0.54972021]
[1761571826185,5.0994553,1174.8,1172.0,0.54972021]
[1761571826481,5.0994553,1174.8,1172.1,0.54972021]
[1761571826685,2.124773,1174.6,1172.2,0.54972021]
[1761571826881,2.124773,1174.6,1171.9,0.63150815]
[1761571827082,2.124773,1174.6,1172.0,0.54945454]
[1761571827385,2.124773,1174.6,1172.1,0.54945454]
[1761571827583,2.124773,1174.6,1172.2,0.54945454]
[1761571827786,2.124773,1174.6,1172.3,0.54946158]
[1761571827991,2.124773,1174.6,1171.9,0.63150815]
[1761571828286,2.124773,1174.6,1172.0,0.54946151]
[1761571828483,2.124773,1174.6,1172.1,0.54946151]
[1761571828783,2.124773,1174.6,1172.2,0.54946151]
[1761571828985,2.124773,1174.6,1171.9,0.63150815]
[1761571829187,2.124773,1174.6,1172.0,0.54960376]
[1761571829387,2.124773,1174.7,1172.1,0.54960376]
[1761571829585,2.124773,1174.7,1172.2,0.54960376]
[1761571829784,2.124773,1175.4,1172.3,0.54960376]
[1761571829988,2.124773,1175.4,1171.7,0.63150815]
[1761571830185,2.124773,1175.4,1171.8,0.5498471]
[1761571830384,2.124773,1175.4,1171.9,0.5498471]
[1761571830684,2.124773,1175.4,1172.0,0.5498471]
[1761571830891,2.124773,1175.4,1172.1,0.5498471]
[1761571831089,2.124773,1175.4,1172.2,0.5498471]
[1761571831283,2.124773,1175.3,1172.3,0.5498471]
[1761571831485,2.124773,1175.3,1171.8,0.63150815]
[1761571831684,2.124773,1175.3,1171.9,0.5504461]
[1761571831983,2.124773,1175.3,1172.0,0.5504461]
[1761571832286,2.124773,1175.3,1172.1,0.5504461]
[1761571832485,2.124773,1175.3,1171.7,0.63150815]
[1761571832486,2.124773,1175.2,1172.2,0.5504461]
[1761571832684,2.124773,1175.2,1171.7,0.63150815]
[1761571832889,2.124773,1174.3,1171.8,0.55066393]
[1761571833091,2.124773,1174.3,1171.9,0.55066393]
[1761571833289,2.124773,1174.3,1172.0,0.55066393]
[1761571833489,2.124773,1174.6,1171.6,0.63150815]
[1761571833789,2.124773,1174.6,1171.7,0.55121788]
[1761571833989,2.124773,1174.7,1171.8,0.55121788]
[1761571834186,2.124773,1174.7,1171.9,0.55121788]
[1761571834389,2.124773,1174.7,1172.0,0.55121788]
[1761571834589,2.124773,1174.6,1171.5,0.63150815]
[1761571834885,2.124773,1174.6,1171.6,0.55140566]
[1761571835086,2.124773,1174.6,1171.7,0.55140566]
[1761571835285,2.124773,1174.6,1171.8,0.55140566]
[1761571835488,2.124773,1174.6,1171.9,0.55140566]
[1761571835686,2.124773,1174.6,1172.0,0.55140566]
[1761571835887,2.124773,1174.6,1171.5,0.63150815]
[1761571836086,2.124773,1174.5,1171.6,0.55125164]
[1761571836288,2.124773,1174.5,1171.7,0.55125164]
[1761571836485,2.124773,1174.6,1171.8,0.55125164]
[1761571836685,2.124773,1174.6,1171.9,0.55125164]
[1761571836887,2.124773,1174.6,1171.5,0.63150815]
[1761571836888,2.124773,1174.6,1172.0,0.55125164]
[1761571837189,2.124773,1174.6,1171.5,0.63150815]
[1761571837391,2.124773,1174.6,1171.6,1.18247969]
[1761571837590,2.124773,1174.2,1171.7,1.18247969]
[1761571837790,2.124773,1174.2,1171.8,0.55097154]
[1761571837993,2.124773,1174.2,1171.9,0.55097154]
[1761571838286,2.124773,1174.2,1172.0,0.55097154]
[1761571838490,2.124773,1174.3,1172.1,0.55097154]
[1761571838688,2.124773,1174.3,1171.7,0.63150815]
[1761571838890,2.124773,1174.3,1171.8,0.55072066]
[1761571839090,2.124773,1174.6,1171.9,0.55072066]
[1761571839391,2.124773,1174.6,1171.4,2.08019908]
[1761571839392,2.124773,1174.7,1172.0,0.55072066]
[1761571839586,2.124773,1174.8,1172.1,0.55072066]
[1761571839786,2.124773,1174.8,1172.2,0.55072066]
[1761571839990,2.124773,1174.8,1172.3,0.55072066]
[1761571840191,2.124773,1174.9,1172.4,0.55072066]
[1761571840492,2.124773,1175.3,1172.5,0.55002782]
[1761571840694,2.124773,1175.3,1172.6,0.55002782]
[1761571840998,2.124773,1175.3,1172.7,0.55002782]
[1761571841294,2.9746823,1175.8,1172.8,0.55002782]
[1761571841495,2.9746823,1175.8,1172.1,0.63150815]
[1761571841695,0.14826271,1175.9,1172.2,0.54955651]
[1761571841894,0.14826271,1175.9,1172.3,0.54955651]
[1761571842095,0.14826271,1175.9,1172.4,0.54955651]
[1761571842294,2.124773,1175.0,1172.5,0.54955651]
[1761571842498,2.124773,1175.0,1172.1,0.63150815]
[1761571842696,2.124773,1174.5,1172.2,0.5496273]
[1761571842898,2.124773,1174.5,1172.3,0.5496273]
[1761571843098,2.124773,1174.5,1171.9,0.63150815]
[1761571843294,2.124773,1174.6,1172.0,0.54993547]
[1761571843498,2.124773,1174.6,1172.1,0.54993547]
[1761571843696,2.124773,1174.6,1172.2,0.54993547]